fUST/lending_fUST_20240727
["ID","MTS","AMOUNT","RATE_DAILY","PERIOD"]
[333364610,1722071449951,-2442.33,0.00014246,2]
[333364612,1722071449960,-375.918608,0.00014246,2]
[333364614,1722071449971,-500.0,0.00014246,2]
[333364616,1722071449981,-375.918608,0.00014246,2]
[333364618,1722071449993,-500.0,0.00014246,2]
[333364619,1722071450003,-500.0,0.00014246,2]
[333364621,1722071450014,-348.695225,0.00014246,2]
[333364623,1722071450025,-151.0,0.00014246,2]
[333364626,1722071450037,-348.695225,0.00014246,2]
[333364628,1722071450049,-797.41,0.00014246,2]
[333364630,1722071450061,-549.17,0.00014246,2]
[333364632,1722071450072,-500.0,0.00014246,2]
[333364634,1722071450083,-500.0,0.00014246,2]
[333364636,1722071450092,-1253.61,0.00014246,2]
[333364638,1722071450102,-726.03,0.00014246,2]
[333364640,1722071450112,-151.0,0.00014246,2]
[333364641,1722071450123,-284.088496,0.00014246,2]
[333364643,1722071450133,-688.65,0.00014246,2]
[333364645,1722071450143,-282.181974,0.00014246,2]
[333364647,1722071450153,-500.0,0.00014246,2]
[333364649,1722071450163,-282.181974,0.00014246,2]
[333364651,1722071450174,-500.0,0.00014246,2]
[333364653,1722071450187,-1677.61,0.00014246,2]
[333364655,1722071450197,-500.0,0.00014246,2]
[333364656,1722071450207,-868.94,0.00014246,2]
[333364657,1722071450218,-725.81,0.00014246,2]
[333364658,1722071450229,-1929.96,0.00014246,2]
[333364659,1722071450240,-504.60023495,0.00014246,2]
[333364660,1722071450250,-1092.21,0.00014246,2]
[333364662,1722071450261,-500.0,0.00014246,2]
[333364664,1722071450273,-2375.04,0.00014246,2]
[333364666,1722071450283,-5915.26,0.00014246,2]
[333364669,1722071450293,-1381.22,0.00014246,2]
[333364671,1722071450304,-500.0,0.00014246,2]
[333364673,1722071450314,-500.0,0.00014246,2]
[333364675,1722071450325,-3338.17,0.00014246,2]
[333364677,1722071450335,-756.39,0.00014246,2]
[333364679,1722071450344,-233.44487698,0.00014246,2]
[333364681,1722071450354,-811.36,0.00014246,2]
[333364683,1722071450364,-151.0,0.00014246,2]
[333364685,1722071450373,-993.2,0.00014246,2]
[333364687,1722071450383,-199.26992587,0.00014246,2]
[333364689,1722071450392,-500.0,0.00014246,2]
[333364691,1722071450402,-500.0,0.00014246,2]
[333364693,1722071450412,-1117.42,0.00014246,2]
[333364695,1722071450421,-500.0,0.00014246,2]
[333364697,1722071450431,-500.0,0.00014246,2]
[333364699,1722071450440,-1196.6,0.00014246,2]
[333364701,1722071450449,-500.0,0.00014246,2]
[333364703,1722071450459,-309.071234,0.00014246,2]
[333364705,1722071450468,-500.0,0.00014246,2]
[333364707,1722071450478,-980.37,0.00014246,2]
[333364721,1722071450589,-309.071234,0.00014246,2]
[333364723,1722071450611,-2024.92,0.00014246,2]
[333364725,1722071450621,-500.0,0.00014246,2]
[333364727,1722071450630,-555.68,0.00014246,2]
[333364729,1722071450640,-500.0,0.00014246,2]
[333364731,1722071450650,-507.2493886,0.00014246,2]
[333364733,1722071450659,-1252.67,0.00014246,2]
[333364735,1722071450668,-238.666415,0.00014246,2]
[333364737,1722071450677,-1538.63,0.00014246,2]
[333364739,1722071450687,-2075.92,0.00014246,2]
[333364741,1722071450697,-238.666415,0.00014246,2]
[333364743,1722071450706,-500.0,0.00014246,2]
[333364745,1722071450716,-670.68,0.00014246,2]
[333364747,1722071450725,-826.55,0.00014246,2]
[333364749,1722071450736,-727.73,0.00014246,2]
[333364751,1722071450745,-500.0,0.00014246,2]
[333364753,1722071450754,-2488.5,0.00014246,2]
[333364755,1722071450764,-500.0,0.00014246,2]
[333364757,1722071450774,-1149.69,0.00014246,2]
[333364759,1722071450783,-3095.49,0.00014246,2]
[333364761,1722071450792,-151.0,0.00014246,2]
[333364763,1722071450802,-500.0,0.00014246,2]
[333364766,1722071450812,-718.24,0.00014246,2]
[333364768,1722071450823,-750.0,0.00014247,2]
[333364770,1722071450833,-150.112233,0.000143,2]
[333364772,1722071450842,-150.112233,0.000144,2]
[333364774,1722071450851,-150.112233,0.000144,2]
[333364776,1722071450861,-151.0,0.0001451,2]
[333364778,1722071450870,-2000.0,0.0001452,2]
[333364780,1722071450879,-505.86770827,0.0001452,2]
[333364782,1722071450888,-614.62687233,0.0001452,2]
[333364783,1722071450897,-500.0,0.0001452,2]
[333364785,1722071450907,-866.62,0.0001452,2]
[333364788,1722071450916,-500.0,0.0001452,2]
[333364790,1722071450926,-500.0,0.0001452,2]
[333364792,1722071450935,-762.54,0.0001452,2]
[333364794,1722071450945,-500.0,0.0001452,2]
[333364796,1722071450953,-500.0,0.0001452,2]
[333364798,1722071450963,-1277.69,0.0001452,2]
[333364800,1722071450972,-451.11322421,0.0001452,2]
[333364801,1722071450981,-500.0,0.0001452,2]
[333364803,1722071450990,-500.0,0.0001452,2]
[333364805,1722071450999,-195.605228,0.0001452,2]
[333364807,1722071451008,-500.0,0.0001452,2]
[333364809,1722071451017,-151.0,0.0001452,2]
[333364810,1722071451027,-746.02,0.0001452,2]
[333364811,1722071451036,-823.3,0.0001452,2]
[333364812,1722071451045,-293.437796,0.0001452,2]
[333364813,1722071451055,-500.0,0.0001452,2]
[333364814,1722071451064,-500.0,0.0001452,2]
[333364815,1722071451073,-500.0,0.0001452,2]
[333364816,1722071451083,-500.0,0.0001452,2]
[333364817,1722071451093,-996.13,0.0001452,2]
[333364818,1722071451102,-500.0,0.0001452,2]
[333364819,1722071451112,-903.18,0.0001452,2]
[333364820,1722071451121,-500.0,0.0001452,2]
[333364821,1722071451130,-500.0,0.0001452,2]
[333364822,1722071451140,-1139.22,0.0001452,2]
[333364823,1722071451150,-1397.19,0.0001452,2]
[333364825,1722071451159,-500.0,0.0001452,2]
[333364827,1722071451168,-987.44,0.0001452,2]
[333364829,1722071451180,-500.0,0.0001452,2]
[333364830,1722071451189,-500.0,0.0001452,2]
[333364832,1722071451199,-500.0,0.0001452,2]
[333364834,1722071451208,-500.0,0.0001452,2]
[333364836,1722071451218,-680.27,0.0001452,2]
[333364838,1722071451228,-521.08,0.0001452,2]
[333364840,1722071451238,-500.0,0.0001452,2]
[333364842,1722071451248,-675.8,0.0001452,2]
[333364844,1722071451258,-500.0,0.0001452,2]
[333364846,1722071451268,-588.71,0.0001452,2]
[333364848,1722071451277,-500.0,0.0001452,2]
[333364849,1722071451287,-535.66,0.0001452,2]
[333364850,1722071451296,-1892.18,0.0001452,2]
[333364851,1722071451305,-500.0,0.0001452,2]
[333364852,1722071451315,-1452.55,0.0001452,2]
[333364853,1722071451325,-151.0,0.0001452,2]
[333364854,1722071451334,-157.412293,0.0001452,2]
[333364855,1722071451345,-500.0,0.0001452,2]
[333364856,1722071451355,-1070.04,0.0001452,2]
[333364857,1722071451364,-151.0,0.0001452,2]
[333364858,1722071451373,-157.412293,0.0001452,2]
[333364859,1722071451382,-2218.23,0.0001452,2]
[333364860,1722071451391,-1236.96,0.0001452,2]
[333364861,1722071451400,-500.0,0.0001452,2]
[333364862,1722071451410,-199.563824,0.0001452,2]
[333364863,1722071451419,-199.563824,0.0001452,2]
[333364864,1722071451429,-1048.1,0.0001452,2]
[333364865,1722071451439,-570.15,0.0001452,2]
[333364866,1722071451448,-500.0,0.0001452,2]
[333364867,1722071451458,-1846.41,0.0001452,2]
[333364868,1722071451467,-500.0,0.0001452,2]
[333364869,1722071451475,-151.0,0.0001452,2]
[333364870,1722071451485,-297.233624,0.0001452,2]
[333364871,1722071451494,-500.0,0.0001452,2]
[333364872,1722071451504,-4947.16,0.0001452,2]
[333364873,1722071451513,-8415.5,0.0001452,2]
[333364874,1722071451522,-507.48370765,0.0001452,2]
[333364875,1722071451532,-513.53,0.0001452,2]
[333364876,1722071451541,-500.0,0.0001452,2]
[333364877,1722071451551,-3538.98,0.0001452,2]
[333364878,1722071451560,-500.0,0.0001452,2]
[333364879,1722071451570,-1178.93,0.0001452,2]
[333364880,1722071451580,-711.33,0.0001452,2]
[333364881,1722071451589,-1592.69,0.0001452,2]
[333364882,1722071451598,-875.19,0.0001452,2]
[333364883,1722071451608,-2442.33,0.0001452,2]
[333364884,1722071451617,-375.918608,0.0001452,2]
[333364885,1722071451626,-375.918608,0.0001452,2]
[333364886,1722071451635,-500.0,0.0001452,2]
[333364887,1722071451645,-348.695225,0.0001452,2]
[333364888,1722071451654,-151.0,0.0001452,2]
[333364889,1722071451663,-348.695225,0.0001452,2]
[333364890,1722071451673,-797.41,0.0001452,2]
[333364891,1722071451682,-549.17,0.0001452,2]
[333364892,1722071451691,-500.0,0.0001452,2]
[333364893,1722071451700,-500.0,0.0001452,2]
[333364894,1722071451710,-1253.61,0.0001452,2]
[333364895,1722071451719,-726.03,0.0001452,2]
[333364896,1722071451728,-151.0,0.0001452,2]
[333364897,1722071451737,-688.65,0.0001452,2]
[333364898,1722071451747,-282.181974,0.0001452,2]
[333364899,1722071451756,-563.05702714,0.0001452,2]
[333364900,1722071451766,-282.181974,0.0001452,2]
[333364901,1722071451775,-500.0,0.0001452,2]
[333364902,1722071451784,-1677.61,0.0001452,2]
[333364903,1722071451794,-243.70941437,0.0001452,2]
[333364904,1722071451803,-868.94,0.0001452,2]
[333364905,1722071451812,-725.81,0.0001452,2]
[333364906,1722071451823,-1929.96,0.0001452,2]
[333364907,1722071451832,-1092.21,0.0001452,2]
[333364908,1722071451842,-500.0,0.0001452,2]
[333364909,1722071451853,-2375.04,0.0001452,2]
[333364910,1722071451862,-5915.26,0.0001452,2]
[333364911,1722071451872,-1381.22,0.0001452,2]
[333364912,1722071451882,-500.0,0.0001452,2]
[333364913,1722071451891,-500.0,0.0001452,2]
[333364914,1722071451900,-3338.17,0.0001452,2]
[333364915,1722071451910,-756.39,0.0001452,2]
[333364916,1722071451919,-811.36,0.0001452,2]
[333364917,1722071451929,-151.0,0.0001452,2]
[333364918,1722071451939,-993.2,0.0001452,2]
[333364919,1722071451948,-500.0,0.0001452,2]
[333364920,1722071451957,-500.0,0.0001452,2]
[333364921,1722071451966,-1117.42,0.0001452,2]
[333364922,1722071451976,-500.0,0.0001452,2]
[333364923,1722071451986,-500.0,0.0001452,2]
[333364924,1722071451994,-1196.6,0.0001452,2]
[333364925,1722071452004,-500.0,0.0001452,2]
[333364926,1722071452014,-309.071234,0.0001452,2]
[333364927,1722071452023,-500.0,0.0001452,2]
[333364928,1722071452033,-980.37,0.0001452,2]
[333364929,1722071452044,-309.071234,0.0001452,2]
[333364930,1722071452055,-2024.92,0.0001452,2]
[333364931,1722071452065,-641.94865096,0.0001452,2]
[333364932,1722071452075,-555.68,0.0001452,2]
[333364933,1722071452084,-500.0,0.0001452,2]
[333364934,1722071452093,-1252.67,0.0001452,2]
[333364935,1722071452103,-238.666415,0.0001452,2]
[333364936,1722071452113,-1538.63,0.0001452,2]
[333364937,1722071452123,-2075.92,0.0001452,2]
[333364938,1722071452134,-238.666415,0.0001452,2]
[333364939,1722071452147,-500.0,0.0001452,2]
[333364940,1722071452158,-670.68,0.0001452,2]
[333364941,1722071452167,-826.55,0.0001452,2]
[333364942,1722071452177,-727.73,0.0001452,2]
[333364943,1722071452188,-500.0,0.0001452,2]
[333364944,1722071452200,-2488.5,0.0001452,2]
[333364945,1722071452211,-500.0,0.0001452,2]
[333364946,1722071452222,-1149.69,0.0001452,2]
[333364947,1722071452232,-151.0,0.0001452,2]
[333364948,1722071452243,-3095.49,0.0001452,2]
[333364949,1722071452253,-718.24,0.0001452,2]
[333364950,1722071452265,-153.0,0.00014603,2]
[333364951,1722071452274,-153.0,0.00014603,2]
[333364952,1722071452283,-2290.55934016,0.0001469,2]
[333364953,1722071452292,-267.96067304,0.0001469,2]
[333364954,1722071452302,-1565.75164544,0.0001469,2]
[333364955,1722071452311,-297.12575329,0.0001469,2]
[333364956,1722071452320,-1823.54896268,0.0001469,2]
[333364957,1722071452330,-526.92108761,0.0001469,2]
[333364958,1722071452339,-154.68290005,0.0001469,2]
[333364959,1722071452348,-397.3727269,0.0001469,2]
[333364960,1722071452357,-154.81624387,0.0001469,2]
[333364961,1722071452366,-151.0,0.00014783,2]
[333364962,1722071452376,-500.0,0.00014794,2]
[333364963,1722071452385,-866.62,0.00014794,2]
[333364964,1722071452394,-500.0,0.00014794,2]
[333364965,1722071452404,-762.54,0.00014794,2]
[333364966,1722071452413,-500.0,0.00014794,2]
[333364967,1722071452422,-500.0,0.00014794,2]
[333364968,1722071452432,-1277.69,0.00014794,2]
[333364969,1722071452441,-500.0,0.00014794,2]
[333364970,1722071452450,-500.0,0.00014794,2]
[333364971,1722071452460,-500.0,0.00014794,2]
[333364972,1722071452469,-151.0,0.00014794,2]
[333364973,1722071452479,-746.02,0.00014794,2]
[333364974,1722071452489,-823.3,0.00014794,2]
[333364975,1722071452498,-430.50993359,0.00014794,2]
[333364976,1722071452507,-500.0,0.00014794,2]
[333364977,1722071452516,-500.0,0.00014794,2]
[333364978,1722071452525,-500.0,0.00014794,2]
[333364979,1722071452535,-996.13,0.00014794,2]
[333364980,1722071452544,-903.18,0.00014794,2]
[333364981,1722071452554,-500.0,0.00014794,2]
[333364982,1722071452563,-1139.22,0.00014794,2]
[333364983,1722071452574,-1397.19,0.00014794,2]
[333364984,1722071452583,-500.0,0.00014794,2]
[333364985,1722071452593,-987.44,0.00014794,2]
[333364986,1722071452602,-500.0,0.00014794,2]
[333364987,1722071452611,-500.0,0.00014794,2]
[333364988,1722071452621,-500.0,0.00014794,2]
[333364989,1722071452631,-500.0,0.00014794,2]
[333364990,1722071452640,-680.27,0.00014794,2]
[333364991,1722071452649,-521.08,0.00014794,2]
[333364992,1722071452659,-675.8,0.00014794,2]
[333364993,1722071452668,-500.0,0.00014794,2]
[333364994,1722071452678,-588.71,0.00014794,2]
[333364995,1722071452687,-500.0,0.00014794,2]
[333364996,1722071452696,-535.66,0.00014794,2]
[333364997,1722071452706,-1892.18,0.00014794,2]
[333364998,1722071452715,-506.39694489,0.00014794,2]
[333364999,1722071452724,-1452.55,0.00014794,2]
[333365000,1722071452734,-151.0,0.00014794,2]
[333365001,1722071452743,-157.412293,0.00014794,2]
[333365002,1722071452752,-500.0,0.00014794,2]
[333365003,1722071452762,-1070.04,0.00014794,2]
[333365004,1722071452771,-157.412293,0.00014794,2]
[333365005,1722071452781,-151.0,0.00014794,2]
[333365006,1722071452790,-2218.23,0.00014794,2]
[333365007,1722071452799,-1236.96,0.00014794,2]
[333365008,1722071452808,-500.0,0.00014794,2]
[333365009,1722071452819,-199.563824,0.00014794,2]
[333365010,1722071452828,-199.563824,0.00014794,2]
[333365011,1722071452838,-570.15,0.00014794,2]
[333365012,1722071452848,-1048.1,0.00014794,2]
[333365013,1722071452858,-500.0,0.00014794,2]
[333365014,1722071452867,-1846.41,0.00014794,2]
[333365015,1722071452876,-500.0,0.00014794,2]
[333365016,1722071452886,-151.0,0.00014794,2]
[333365017,1722071452896,-500.0,0.00014794,2]
[333365018,1722071452905,-4947.16,0.00014794,2]
[333365019,1722071452914,-8415.5,0.00014794,2]
[333365020,1722071452923,-513.53,0.00014794,2]
[333365021,1722071452932,-500.0,0.00014794,2]
[333365022,1722071452941,-3538.98,0.00014794,2]
[333365023,1722071452950,-500.0,0.00014794,2]
[333365024,1722071452959,-1178.93,0.00014794,2]
[333365025,1722071452968,-711.33,0.00014794,2]
[333365026,1722071452977,-1592.69,0.00014794,2]
[333365027,1722071452986,-875.19,0.00014794,2]
[333365028,1722071452995,-2442.33,0.00014794,2]
[333365029,1722071453004,-375.918608,0.00014794,2]
[333365030,1722071453014,-375.918608,0.00014794,2]
[333365031,1722071453023,-500.0,0.00014794,2]
[333365032,1722071453032,-348.695225,0.00014794,2]
[333365033,1722071453043,-151.0,0.00014794,2]
[333365034,1722071453052,-348.695225,0.00014794,2]
[333365035,1722071453061,-797.41,0.00014794,2]
[333365036,1722071453071,-549.17,0.00014794,2]
[333365037,1722071453081,-500.0,0.00014794,2]
[333365038,1722071453090,-500.0,0.00014794,2]
[333365039,1722071453099,-1253.61,0.00014794,2]
[333365040,1722071453109,-726.03,0.00014794,2]
[333365041,1722071453118,-151.0,0.00014794,2]
[333365042,1722071453128,-688.65,0.00014794,2]
[333365043,1722071453138,-282.181974,0.00014794,2]
[333365044,1722071453148,-282.181974,0.00014794,2]
[333365045,1722071453157,-500.0,0.00014794,2]
[333365046,1722071453166,-1677.61,0.00014794,2]
[333365047,1722071453176,-868.94,0.00014794,2]
[333365048,1722071453190,-725.81,0.00014794,2]
[333365049,1722071453201,-1929.96,0.00014794,2]
[333365050,1722071453210,-1092.21,0.00014794,2]
[333365051,1722071453219,-500.0,0.00014794,2]
[333365052,1722071453229,-2375.04,0.00014794,2]
[333365053,1722071453238,-5915.26,0.00014794,2]
[333365054,1722071453248,-1381.22,0.00014794,2]
[333365055,1722071453257,-500.0,0.00014794,2]
[333365056,1722071453266,-500.0,0.00014794,2]
[333365057,1722071453276,-3338.17,0.00014794,2]
[333365058,1722071453285,-756.39,0.00014794,2]
[333365059,1722071453295,-811.36,0.00014794,2]
[333365060,1722071453304,-151.0,0.00014794,2]
[333365061,1722071453313,-993.2,0.00014794,2]
[333365062,1722071453323,-500.0,0.00014794,2]
[333365063,1722071453332,-500.0,0.00014794,2]
[333365064,1722071453342,-1117.42,0.00014794,2]
[333365065,1722071453352,-500.0,0.00014794,2]
[333365066,1722071453361,-500.0,0.00014794,2]
[333365067,1722071453370,-1196.6,0.00014794,2]
[333365068,1722071453380,-500.0,0.00014794,2]
[333365069,1722071453499,-309.071234,0.00014794,2]
[333365070,1722071453510,-500.0,0.00014794,2]
[333365071,1722071453520,-980.37,0.00014794,2]
[333365072,1722071453529,-309.071234,0.00014794,2]
[333365073,1722071453539,-2024.92,0.00014794,2]
[333365074,1722071453550,-555.68,0.00014794,2]
[333365075,1722071453559,-500.0,0.00014794,2]
[333365076,1722071453568,-1252.67,0.00014794,2]
[333365077,1722071453578,-238.666415,0.00014794,2]
[333365078,1722071453587,-1538.63,0.00014794,2]
[333365079,1722071453597,-2075.92,0.00014794,2]
[333365080,1722071453620,-238.666415,0.00014794,2]
[333365081,1722071453630,-500.0,0.00014794,2]
[333365082,1722071453640,-670.68,0.00014794,2]
[333365083,1722071453649,-826.55,0.00014794,2]
[333365084,1722071453659,-727.73,0.00014794,2]
[333365085,1722071453668,-500.0,0.00014794,2]
[333365086,1722071453677,-2488.5,0.00014794,2]
[333365087,1722071453687,-500.0,0.00014794,2]
[333365088,1722071453697,-1149.69,0.00014794,2]
[333365089,1722071453706,-151.0,0.00014794,2]
[333365090,1722071453715,-3095.49,0.00014794,2]
[333365091,1722071453725,-718.24,0.00014794,2]
[333365092,1722071453734,-420.0,0.00014848,2]
[333365093,1722071453743,-420.0,0.00014901,2]
[333365094,1722071453752,-1825.80003455,0.00015,2]
[333365095,1722071453762,-2126.89483416,0.00015,2]
[333365096,1722071453772,-2845.62891155,0.00015,2]
[333365097,1722071453781,-1044.2926843,0.00015,2]
[333365098,1722071453791,-4000.0,0.00015,7]
[333365099,1722071453801,-4000.0,0.00015,2]
[333365100,1722071453811,-4000.0,0.00015,2]
[333365101,1722071453820,-4000.0,0.00015,2]
[333365102,1722071453830,-4000.0,0.00015,2]
[333365103,1722071453839,-3000.0,0.00015,2]
[333365104,1722071453849,-2448.74464693,0.00015,2]
[333365105,1722071453859,-26500.0,0.00015,15]
[333365106,1722071453867,-15023.00043836,0.00015,2]
[333365107,1722071454029,-36553.70414138,0.00015,2]
[333365108,1722071454041,-53562.378879,0.00015,2]
[333365109,1722071454052,-3062.45863511,0.00015,2]
[333365110,1722071454334,-165.42397432,0.0001212,2]
[333365111,1722071454343,-41199.34828315,0.00015,2]
[333365112,1722071454353,-1020.10671538,0.00015,2]
[333365113,1722071454363,-151.0,0.00015,2]
[333365114,1722071454372,-151.0,0.00015,2]
[333365115,1722071454381,-151.0,0.00015,2]
[333365116,1722071454390,-157.412293,0.00015,2]
[333365117,1722071454400,-157.412293,0.00015,2]
[333365118,1722071454410,-151.0,0.00015,2]
[333365119,1722071454420,-199.563824,0.00015,2]
[333365120,1722071454431,-199.563824,0.00015,2]
[333365121,1722071454441,-151.0,0.00015,2]
[333365122,1722071454452,-375.918608,0.00015,2]
[333365123,1722071454462,-375.918608,0.00015,2]
[333365124,1722071454471,-348.695225,0.00015,2]
[333365125,1722071454481,-151.0,0.00015,2]
[333365126,1722071454490,-348.695225,0.00015,2]
[333365127,1722071454499,-151.0,0.00015,2]
[333365128,1722071454509,-282.181974,0.00015,2]
[333365129,1722071454518,-282.181974,0.00015,2]
[333365130,1722071454527,-151.0,0.00015,2]
[333365131,1722071454537,-313.40359778,0.00015,2]
[333365132,1722071454546,-309.071234,0.00015,2]
[333365133,1722071454555,-309.071234,0.00015,2]
[333365134,1722071454564,-238.666415,0.00015,2]
[333365135,1722071454574,-238.666415,0.00015,2]
[333365136,1722071454584,-151.0,0.00015,2]
[333365137,1722071454593,-500.0,0.00015068,2]
[333365138,1722071454602,-866.62,0.00015068,2]
[333365139,1722071454611,-151.0,0.00015068,2]
[333365140,1722071454623,-500.0,0.00015068,2]
[333365141,1722071454633,-762.54,0.00015068,2]
[333365142,1722071454643,-500.0,0.00015068,2]
[333365143,1722071454652,-500.0,0.00015068,2]
[333365144,1722071454661,-1277.69,0.00015068,2]
[333365145,1722071454671,-500.0,0.00015068,2]
[333365146,1722071454680,-500.0,0.00015068,2]
[333365147,1722071454689,-500.0,0.00015068,2]
[333365148,1722071454699,-746.02,0.00015068,2]
[333365149,1722071454709,-823.3,0.00015068,2]
[333365150,1722071454719,-500.0,0.00015068,2]
[333365151,1722071454728,-500.0,0.00015068,2]
[333365152,1722071454737,-500.0,0.00015068,2]
[333365153,1722071454746,-996.13,0.00015068,2]
[333365154,1722071454756,-903.18,0.00015068,2]
[333365155,1722071454766,-500.0,0.00015068,2]
[333365156,1722071454776,-1139.22,0.00015068,2]
[333365157,1722071454785,-1397.19,0.00015068,2]
[333365158,1722071454795,-500.0,0.00015068,2]
[333365159,1722071454805,-987.44,0.00015068,2]
[333365160,1722071454814,-500.0,0.00015068,2]
[333365161,1722071454825,-500.0,0.00015068,2]
[333365162,1722071454836,-500.0,0.00015068,2]
[333365163,1722071454845,-500.0,0.00015068,2]
[333365164,1722071454857,-680.27,0.00015068,2]
[333365165,1722071454866,-521.08,0.00015068,2]
[333365166,1722071454876,-675.8,0.00015068,2]
[333365167,1722071454886,-500.0,0.00015068,2]
[333365168,1722071454895,-588.71,0.00015068,2]
[333365169,1722071454904,-396.55196556,0.00015068,2]
[333365170,1722071454913,-1892.18,0.00015068,2]
[333365171,1722071454923,-1452.55,0.00015068,2]
[333365172,1722071454932,-500.0,0.00015068,2]
[333365173,1722071454942,-1070.04,0.00015068,2]
[333365174,1722071454952,-2218.23,0.00015068,2]
[333365175,1722071454962,-1236.96,0.00015068,2]
[333365176,1722071454973,-500.0,0.00015068,2]
[333365177,1722071454983,-570.15,0.00015068,2]
[333365178,1722071454992,-1048.1,0.00015068,2]
[333365179,1722071455003,-500.0,0.00015068,2]
[333365180,1722071455014,-1846.41,0.00015068,2]
[333365181,1722071455024,-500.0,0.00015068,2]
[333365182,1722071455034,-151.0,0.00015068,2]
[333365183,1722071455045,-500.0,0.00015068,2]
[333365184,1722071455055,-4947.16,0.00015068,2]
[333365185,1722071455065,-8415.5,0.00015068,2]
[333365186,1722071455075,-513.53,0.00015068,2]
[333365187,1722071455085,-500.0,0.00015068,2]
[333365188,1722071455094,-3538.98,0.00015068,2]
[333365189,1722071455104,-500.0,0.00015068,2]
[333365190,1722071455114,-1178.93,0.00015068,2]
[333365191,1722071455123,-711.33,0.00015068,2]
[333365192,1722071455133,-1592.69,0.00015068,2]
[333365193,1722071455143,-875.19,0.00015068,2]
[333365194,1722071455153,-2442.33,0.00015068,2]
[333365195,1722071455164,-375.918608,0.00015068,2]
[333365196,1722071455175,-500.0,0.00015068,2]
[333365197,1722071455187,-375.918608,0.00015068,2]
[333365198,1722071455198,-348.695225,0.00015068,2]
[333365199,1722071455211,-151.0,0.00015068,2]
[333365200,1722071455223,-348.695225,0.00015068,2]
[333365201,1722071455234,-797.41,0.00015068,2]
[333365202,1722071455243,-549.17,0.00015068,2]
[333365203,1722071455253,-500.0,0.00015068,2]
[333365204,1722071455263,-500.0,0.00015068,2]
[333365205,1722071455272,-1253.61,0.00015068,2]
[333365206,1722071455282,-726.03,0.00015068,2]
[333365207,1722071455292,-151.0,0.00015068,2]
[333365208,1722071455302,-688.65,0.00015068,2]
[333365209,1722071455312,-500.0,0.00015068,2]
[333365210,1722071455321,-1677.61,0.00015068,2]
[333365211,1722071455331,-868.94,0.00015068,2]
[333365212,1722071455340,-725.81,0.00015068,2]
[333365213,1722071455350,-1929.96,0.00015068,2]
[333365214,1722071455360,-1092.21,0.00015068,2]
[333365215,1722071455369,-500.0,0.00015068,2]
[333365216,1722071455379,-2375.04,0.00015068,2]
[333365217,1722071455388,-5915.26,0.00015068,2]
[333365218,1722071455398,-1381.22,0.00015068,2]
[333365219,1722071455408,-508.53529551,0.00015068,2]
[333365220,1722071455417,-506.5967466,0.00015068,2]
[333365221,1722071455426,-3338.17,0.00015068,2]
[333365222,1722071455435,-756.39,0.00015068,2]
[333365223,1722071455445,-811.36,0.00015068,2]
[333365224,1722071455454,-993.2,0.00015068,2]